fUSD/lending_fUSD_20260515
["ID","MTS","AMOUNT","RATE_DAILY","PERIOD"]
[422294196,1778796645000,-150.0,0.00030073,2]
[422294197,1778796645000,-150.0,0.00030073,2]
[422294195,1778796645000,-150.0,0.00030073,2]
[422294193,1778796645000,-165.48517158,0.0003,2]
[422294194,1778796645000,-311.26101948,0.0003,2]
[422294209,1778796645000,-695.31243451,0.0003013,120]
[422294164,1778796645000,-1083.466321,0.00028767,7]
[422294184,1778796645000,-10000.0,0.0003,10]
[422294167,1778796645000,-1198.38,0.00029,7]
[422294153,1778796645000,-150.0,0.00028192,2]
[422294169,1778796645000,-640.35794173,0.00029224,30]
[422294206,1778796645000,-2000.0,0.00030126,120]
[422294145,1778796645000,-152.0,0.00027709,3]
[422294146,1778796645000,-500.0,0.000278,7]
[422294144,1778796645000,-150.0,0.0002761,2]
[422294141,1778796645000,-926.0,0.00027518,2]
[422294142,1778796645000,-3542.0,0.00027518,2]
[422294143,1778796645000,-625.0,0.00027518,2]
[422294140,1778796645000,-1354.0,0.00027518,2]
[422294147,1778796645000,-505.0,0.00027909,5]
[422294148,1778796645000,-208.3309892,0.00028,10]
[422294151,1778796645000,-500.0,0.00028097,15]
[422294152,1778796645000,-500.0,0.00028097,15]
[422294149,1778796645000,-500.0,0.00028097,15]
[422294168,1778796645000,-505.0,0.0002908,6]
[422294150,1778796645000,-500.0,0.00028097,15]
[422294159,1778796645000,-500.0,0.00028493,2]
[422294157,1778796645000,-1817.69,0.000283,14]
[422294154,1778796645000,-2810.45,0.000282,7]
[422294155,1778796645000,-2445.9,0.00028267,2]
[422294156,1778796645000,-2183.19,0.000283,7]
[422294171,1778796645000,-152.0,0.00029307,4]
[422294161,1778796645000,-1083.466321,0.00028767,7]
[422294160,1778796645000,-505.0,0.00028494,6]
[422294162,1778796645000,-1083.466321,0.00028767,7]
[422294163,1778796645000,-1083.466321,0.00028767,7]
[422294173,1778796645000,-2183.19,0.000296,7]
[422294172,1778796645000,-158.0,0.00029594,3]
[422294165,1778796645000,-23907.68,0.000288,2]
[422294158,1778796645000,-640.35794173,0.00028311,30]
[422294200,1778796645000,-150.0,0.00030073,2]
[422294204,1778796645000,-2089.0,0.000301,120]
[422294199,1778796645000,-150.0,0.00030073,2]
[422294237,1778796645000,-156.0,0.00030588,30]
[422294238,1778796645000,-163.0,0.00030588,30]
[422294239,1778796645000,-1026.0,0.00030588,30]
[422294241,1778796645000,-162.0,0.00030588,30]
[422294244,1778796645000,-163.0,0.00030589,30]
[422294242,1778796645000,-161.0,0.00030588,30]
[422294246,1778796645000,-157.0,0.00030589,30]
[422294247,1778796645000,-683.0,0.00030589,30]
[422294245,1778796645000,-162.0,0.00030589,30]
[422294240,1778796645000,-1424.0,0.00030588,30]
[422294243,1778796645000,-250.0,0.00030588,30]
[422294249,1778796645000,-2274.44065677,0.000307,2]
[422294248,1778796645000,-435.81474349,0.00030613,120]
[422294236,1778796645000,-406.0,0.00030559,2]
[422294259,1778796645000,-309.54323907,0.00031,2]
[422294254,1778796645000,-2810.45,0.000308,7]
[422294252,1778796645000,-500.0,0.00030702,20]
[422294255,1778796645000,-505.0,0.00030835,8]
[422294251,1778796645000,-2274.44065677,0.000307,2]
[422294260,1778796645000,-1198.38,0.00031,7]
[422294256,1778796645000,-1633.762728,0.0003084,2]
[422294253,1778796645000,-163.0,0.00030744,3]
[422294258,1778796645000,-11418.38812416,0.00031,2]
[422294257,1778796645000,-152.0,0.00030906,5]
[422294207,1778796645000,-1090.01257389,0.0003013,2]
[422294262,1778796645000,-150.0,0.00031081,2]
[422294263,1778796645000,-200.0,0.00031096,2]
[422294264,1778796645000,-1000.0,0.0003118,2]
[422294250,1778796645000,-2274.44065677,0.000307,2]
[422294235,1778796645000,-300.0,0.00030559,2]
[422294261,1778796645000,-4517.66794173,0.0003105,30]
[422294233,1778796645000,-300.0,0.00030559,2]
[422294234,1778796645000,-300.0,0.00030559,2]
[422294198,1778796645000,-150.0,0.00030073,2]
[422294201,1778796645000,-202.0,0.00030073,2]
[422294202,1778796645000,-419.47,0.00030082,120]
[422294203,1778796645000,-163.0,0.00030098,3]
[422294210,1778796645000,-204.78623452,0.0003013,2]
[422294212,1778796645000,-1534133.50631724,0.0003013,7]
[422294216,1778796645000,-3742.20794173,0.00030137,30]
[422294214,1778796645000,-200.0,0.00030137,2]
[422294220,1778796645000,-2459.21443181,0.00030337,2]
[422294219,1778796645000,-505.0,0.0003025,8]
[422294213,1778796645000,-151.0,0.00030137,7]
[422294211,1778796645000,-966.67705475,0.0003013,2]
[422294215,1778796645000,-1439.49482848,0.00030137,2]
[422294208,1778796645000,-14062.18211803,0.0003013,2]
[422294223,1778796645000,-2183.19,0.000304,7]
[422294221,1778796645000,-255.0,0.00030338,5]
[422294229,1778796645000,-300.0,0.00030559,2]
[422294228,1778796645000,-300.0,0.00030559,2]
[422294226,1778796645000,-926.0,0.00030518,2]
[422294232,1778796645000,-300.0,0.00030559,2]
[422294224,1778796645000,-1817.69,0.000304,14]
[422294227,1778796645000,-1574.841,0.00030518,2]
[422294231,1778796645000,-300.0,0.00030559,2]
[422294225,1778796645000,-1354.0,0.00030518,2]
[422294218,1778796645000,-2445.9,0.00030239,2]
[422294217,1778796645000,-15775.86246227,0.000302,2]
[422294222,1778796645000,-354.0,0.00030338,5]
[422294230,1778796645000,-300.0,0.00030559,2]
[422294302,1778796646000,-150.0,0.00032086,2]
[422294300,1778796646000,-200.0,0.00032055,2]
[422294304,1778796646000,-150.0,0.00032086,2]
[422294308,1778796646000,-187.0,0.00032086,2]
[422294299,1778796646000,-158.0,0.00032044,3]
[422294297,1778796646000,-505.0,0.00032006,9]
[422294296,1778796646000,-1760.15619245,0.00032,2]
[422294309,1778796646000,-2183.19,0.000321,7]
[422294292,1778796646000,-500.0,0.00031623,22]
[422294305,1778796646000,-150.0,0.00032086,2]
[422294295,1778796646000,-3557.20329659,0.00032,120]
[422294311,1778796646000,-3165.22971487,0.00032101,2]
[422294306,1778796646000,-150.0,0.00032086,2]
[422294303,1778796646000,-150.0,0.00032086,2]
[422294298,1778796646000,-193.9184035,0.0003202,5]
[422294307,1778796646000,-150.0,0.00032086,2]
[422294310,1778796646000,-1817.69,0.000321,14]
[422294312,1778796646000,-179.3,0.00032131,4]
[422294313,1778796646000,-179.3,0.00032131,4]
[422294314,1778796646000,-2810.45,0.000322,7]
[422294320,1778796646000,-173.11281388,0.00032394,63]
[422294317,1778796646000,-3165.22971487,0.0003229,2]
[422294322,1778796646000,-152.0,0.00032504,6]
[422294294,1778796646000,-5293.12794173,0.00031963,30]
[422294301,1778796646000,-3165.22971487,0.00032078,2]
[422294293,1778796646000,-200.0,0.000318,2]
[422294275,1778796646000,-374.0,0.000313,3]
[422294289,1778796646000,-167.0,0.00031589,30]
[422294315,1778796646000,-150.0,0.00032204,2]
[422294268,1778796646000,-1000.0,0.00031184,2]
[422294270,1778796646000,-1000.0,0.00031184,2]
[422294265,1778796646000,-1000.0,0.0003118,2]
[422294267,1778796646000,-1000.0,0.00031184,2]
[422294266,1778796646000,-1847.41533141,0.0003118,2]
[422294269,1778796646000,-1000.0,0.00031184,2]
[422294271,1778796646000,-1000.0,0.00031184,2]
[422294272,1778796646000,-2183.19,0.000312,7]
[422294274,1778796646000,-500.0,0.00031233,2]
[422294273,1778796646000,-1817.69,0.000312,14]
[422294279,1778796646000,-200.44972037,0.000315,2]
[422294277,1778796646000,-505.0,0.00031421,9]
[422294282,1778796646000,-156.0,0.00031588,30]
[422294284,1778796646000,-1026.0,0.00031588,30]
[422294276,1778796646000,-215.87760526,0.00031393,5]
[422294278,1778796646000,-1000.0,0.000315,7]
[422294280,1778796646000,-150.0,0.000315,2]
[422294283,1778796646000,-163.0,0.00031588,30]
[422294281,1778796646000,-2810.45,0.000315,7]
[422294285,1778796646000,-1424.0,0.00031588,30]
[422294287,1778796646000,-250.0,0.00031588,30]
[422294286,1778796646000,-162.0,0.00031588,30]
[422294290,1778796646000,-157.0,0.00031589,30]
[422294291,1778796646000,-683.0,0.00031589,30]
[422294288,1778796646000,-163.0,0.00031589,30]
[422294321,1778796646000,-3165.22971487,0.00032491,2]
[422294342,1778796646000,-2000.0,0.00032865,120]
[422294316,1778796646000,-2445.9,0.0003221,5]
[422294350,1778796646000,-500.0,0.00032876,2]
[422294361,1778796646000,-500.0,0.00032876,2]
[422294352,1778796646000,-208.91788061,0.00032876,2]
[422294360,1778796646000,-500.0,0.00032876,2]
[422294357,1778796646000,-500.0,0.00032876,2]
[422294356,1778796646000,-500.0,0.00032876,2]
[422294354,1778796646000,-500.0,0.00032876,2]
[422294355,1778796646000,-500.0,0.00032876,2]
[422294353,1778796646000,-500.0,0.00032876,2]
[422294358,1778796646000,-500.0,0.00032876,2]
[422294359,1778796646000,-500.0,0.00032876,2]
[422294351,1778796646000,-396.68240628,0.00032876,2]
[422294364,1778796646000,-394.73476159,0.00032876,2]
[422294366,1778796646000,-500.0,0.00032876,2]
[422294363,1778796646000,-500.0,0.00032876,2]
[422294367,1778796646000,-512.88017975,0.00032876,2]
[422294368,1778796646000,-500.0,0.00032876,2]
[422294370,1778796646000,-500.0,0.00032876,2]
[422294369,1778796646000,-500.0,0.00032876,2]
[422294372,1778796646000,-500.0,0.00032876,2]
[422294373,1778796646000,-500.0,0.00032876,2]
[422294375,1778796646000,-500.0,0.00032876,2]
[422294376,1778796646000,-500.0,0.00032876,2]
[422294318,1778796646000,-908.39387695,0.000323,2]
[422294362,1778796646000,-500.0,0.00032876,2]
[422294349,1778796646000,-500.0,0.00032876,2]
[422294365,1778796646000,-500.0,0.00032876,2]
[422294346,1778796646000,-500.0,0.00032876,2]
[422294319,1778796646000,-3165.22971487,0.0003234,2]
[422294348,1778796646000,-500.0,0.00032876,2]
[422294324,1778796646000,-156.0,0.00032588,30]
[422294326,1778796646000,-1026.0,0.00032588,30]
[422294323,1778796646000,-500.0,0.00032572,24]
[422294325,1778796646000,-163.0,0.00032588,30]
[422294328,1778796646000,-166.0,0.00032588,30]
[422294338,1778796646000,-3165.22971487,0.00032806,2]
[422294329,1778796646000,-250.0,0.00032588,30]
[422294330,1778796646000,-163.0,0.00032589,30]
[422294332,1778796646000,-683.0,0.00032589,30]
[422294331,1778796646000,-157.0,0.00032589,30]
[422294336,1778796646000,-171.95920175,0.00032648,5]
[422294327,1778796646000,-1424.0,0.00032588,30]
[422294333,1778796646000,-505.0,0.00032591,10]
[422294343,1778796646000,-187.93632168,0.00032876,2]
[422294347,1778796646000,-500.0,0.00032876,2]
[422294340,1778796646000,-930.0,0.00032818,2]
[422294344,1778796646000,-500.0,0.00032876,2]
[422294341,1778796646000,-3165.22971487,0.00032843,2]
[422294345,1778796646000,-413.89496999,0.00032876,2]
[422294339,1778796646000,-3165.22971487,0.00032812,2]
[422294335,1778796646000,-150.0,0.00032636,2]
[422294337,1778796646000,-4908.9668208,0.000328,2]
[422294334,1778796646000,-2311.0,0.00032619,11]
[422294374,1778796646000,-500.0,0.00032876,2]
[422294419,1778796647000,-571.343059,0.00033,14]
[422294412,1778796647000,-152.61064582,0.000329,120]
[422294422,1778796647000,-579.72134238,0.00033,7]
[422294421,1778796647000,-52150.74011397,0.00033,2]
[422294414,1778796647000,-2183.19,0.000329,30]
[422294413,1778796647000,-327.52,0.000329,120]
[422294411,1778796647000,-12938.53442052,0.000329,120]
[422294410,1778796647000,-6068.58574145,0.00032877,30]
[422294406,1778796647000,-500.0,0.00032877,2]
[422294408,1778796647000,-1000.0,0.00032877,120]
[422294420,1778796647000,-46623.37967612,0.00033,5]
[422294415,1778796647000,-1817.69,0.000329,14]
[422294416,1778796647000,-250.0,0.00032942,7]
[422294429,1778796647000,-214.95940296,0.00033,3]
[422294417,1778796647000,-3165.22971487,0.00032976,2]
[422294423,1778796647000,-37971.80207642,0.00033,3]
[422294425,1778796647000,-5192.39742782,0.00033,2]
[422294424,1778796647000,-3319.149999,0.00033,30]
[422294435,1778796647000,-314.93603653,0.00033206,7]
[422294428,1778796647000,-208.3309892,0.00033,3]
[422294426,1778796647000,-8710.21141011,0.00033,2]
[422294430,1778796647000,-150.0,0.00033,30]
[422294432,1778796647000,-350.0,0.00033014,5]
[422294427,1778796647000,-208.3309892,0.00033,120]
[422294433,1778796647000,-505.0,0.00033177,11]
[422294404,1778796647000,-500.0,0.00032877,2]
[422294418,1778796647000,-2686.98398688,0.00032984,7]
[422294405,1778796647000,-500.0,0.00032877,2]
[422294377,1778796647000,-782.88374681,0.00032876,2]
[422294403,1778796647000,-500.0,0.00032877,2]
[422294384,1778796647000,-782.88374681,0.00032876,2]
[422294382,1778796647000,-782.88374681,0.00032876,2]
[422294431,1778796647000,-214.926817,0.00033003,30]
[422294379,1778796647000,-782.88374681,0.00032876,2]
[422294381,1778796647000,-782.88374681,0.00032876,2]
[422294383,1778796647000,-782.88374681,0.00032876,2]
[422294385,1778796647000,-782.88374681,0.00032876,2]
[422294380,1778796647000,-782.88374681,0.00032876,2]
[422294378,1778796647000,-782.88374681,0.00032876,2]
[422294386,1778796647000,-1017.74887084,0.00032876,2]
[422294387,1778796647000,-1017.74887084,0.00032876,2]
[422294388,1778796647000,-788.75537492,0.00032876,2]
[422294391,1778796647000,-500.0,0.00032876,2]
[422294390,1778796647000,-450.0,0.00032876,2]
[422294394,1778796647000,-1131.0,0.00032877,2]
[422294393,1778796647000,-1001.84,0.00032877,2]
[422294395,1778796647000,-152.6,0.00032877,120]
[422294389,1778796647000,-186.44774474,0.00032876,2]
[422294392,1778796647000,-1671.0,0.00032877,2]
[422294396,1778796647000,-349.95,0.00032877,2]
[422294397,1778796647000,-151.0,0.00032877,7]
[422294399,1778796647000,-151.0,0.00032877,7]
[422294409,1778796647000,-426.90529449,0.00032877,60]
[422294398,1778796647000,-151.0,0.00032877,7]
[422294400,1778796647000,-151.0,0.00032877,7]
[422294402,1778796647000,-500.0,0.00032877,2]
[422294401,1778796647000,-500.0,0.00032877,2]
[422294407,1778796647000,-414.01791719,0.00032877,2]
[422294434,1778796647000,-3165.22971487,0.00033195,2]
[422294450,1778796647000,-250.0,0.00033588,30]
[422294437,1778796647000,-3165.22971487,0.00033367,2]
[422294462,1778796647000,-208.3309892,0.00034,30]
[422294469,1778796647000,-700.0,0.00034257,2]
[422294472,1778796647000,-700.0,0.00034257,2]
[422294473,1778796647000,-700.0,0.00034257,2]
[422294481,1778796647000,-505.0,0.00034347,12]
[422294476,1778796647000,-700.0,0.00034257,2]
[422294479,1778796647000,-150.0,0.00034267,2]
[422294480,1778796647000,-41027.0,0.00034289,30]
[422294475,1778796647000,-700.0,0.00034257,2]
[422294477,1778796647000,-700.0,0.00034257,2]
[422294436,1778796647000,-3165.22971487,0.00033293,2]
[422294482,1778796647000,-158.0,0.00034493,3]
[422294474,1778796647000,-700.0,0.00034257,2]
[422294483,1778796647000,-419.47,0.00034521,120]
[422294485,1778796647000,-1026.0,0.00034588,30]
[422294486,1778796647000,-1424.0,0.00034588,30]
[422294484,1778796647000,-156.0,0.00034588,30]
[422294489,1778796647000,-683.0,0.00034589,30]
[422294487,1778796647000,-250.0,0.00034588,30]
[422294488,1778796647000,-157.0,0.00034589,30]
[422294493,1778796647000,-1500.0,0.00034795,2]
[422294492,1778796647000,-150.0,0.00034781,2]
[422294491,1778796647000,-163.89776066,0.00034726,30]
[422294494,1778796647000,-350.0,0.00034931,5]
[422294490,1778796647000,-41027.0,0.00034718,30]
[422294495,1778796647000,-505.0,0.00034933,12]
[422294496,1778796647000,-556.18,0.00034999,30]
[422294467,1778796647000,-2445.9,0.00034182,7]
[422294461,1778796647000,-3165.22971487,0.00033977,2]
[422294478,1778796647000,-658.0,0.00034257,2]
[422294468,1778796647000,-1000.0,0.00034247,120]
[422294465,1778796647000,-2810.45,0.00034,30]
[422294440,1778796647000,-10000.0,0.00033496,2]
[422294442,1778796647000,-3165.22971487,0.00033516,2]
[422294443,1778796647000,-1354.0,0.00033518,2]
[422294441,1778796647000,-1231.53069123,0.000335,2]
[422294446,1778796647000,-156.0,0.00033588,30]
[422294444,1778796647000,-926.0,0.00033518,2]
[422294439,1778796647000,-41027.0,0.0003343,30]
[422294445,1778796647000,-503.03240194,0.00033549,26]
[422294447,1778796647000,-169.0,0.00033588,30]
[422294449,1778796647000,-1424.0,0.00033588,30]
[422294448,1778796647000,-1026.0,0.00033588,30]
[422294452,1778796647000,-157.0,0.00033589,30]
[422294438,1778796647000,-2459.21443181,0.00033418,2]
[422294453,1778796647000,-683.0,0.00033589,30]
[422294451,1778796647000,-169.0,0.00033589,30]
[422294466,1778796647000,-152.0,0.00034103,7]
[422294464,1778796647000,-1817.69,0.00034,14]
[422294470,1778796647000,-700.0,0.00034257,2]
[422294471,1778796647000,-700.0,0.00034257,2]
[422294460,1778796647000,-350.0,0.00033973,5]
[422294463,1778796647000,-2183.19,0.00034,30]
[422294458,1778796647000,-200.0,0.00033915,10]
[422294455,1778796647000,-23907.68,0.000336,2]
[422294456,1778796647000,-505.0,0.00033762,11]
[422294457,1778796647000,-41027.0,0.00033859,30]
[422294459,1778796647000,-3165.22971487,0.00033924,2]
[422294454,1778796647000,-155.37996832,0.000336,120]
[422294509,1778796648000,-213.36350281,0.00035264,14]
[422294513,1778796648000,-883.0,0.000353,2]
[422294512,1778796648000,-314.0,0.000353,2]
[422294514,1778796648000,-505.0,0.00035518,13]
[422294518,1778796648000,-250.0,0.00035588,30]
[422294516,1778796648000,-1026.0,0.00035588,30]
[422294521,1778796648000,-500.0,0.00035616,120]
[422294519,1778796648000,-157.0,0.00035589,30]
[422294517,1778796648000,-1424.0,0.00035588,30]
[422294511,1778796648000,-1000.0,0.000353,2]
[422294515,1778796648000,-156.0,0.00035588,30]
[422294510,1778796648000,-308.0,0.000353,2]
[422294503,1778796648000,-300.0,0.00035001,3]
[422294508,1778796648000,-1500.0,0.000352,7]
[422294506,1778796648000,-665.2968157,0.00035004,120]
[422294504,1778796648000,-270.9971936,0.00035001,3]
[422294502,1778796648000,-200.0,0.00035001,3]
[422294505,1778796648000,-270.9971936,0.00035001,3]
[422294500,1778796648000,-61701.16971157,0.00035,7]
[422294501,1778796648000,-1198.38,0.00035,7]
[422294499,1778796648000,-44748.11385867,0.00035,2]
[422294498,1778796648000,-192.22527115,0.00035,7]
[422294497,1778796648000,-1302.941562,0.00035,60]
[422294522,1778796648000,-500.0,0.00035616,120]
[422294507,1778796648000,-163.89776066,0.00035192,30]
[422294523,1778796648000,-500.0,0.00035616,120]
[422294520,1778796648000,-683.0,0.00035589,30]
[422294525,1778796648000,-500.0,0.00035616,120]
[422294524,1778796648000,-500.0,0.00035616,120]
[422294546,1778796648000,-500.0,0.00035616,7]
[422294549,1778796648000,-500.0,0.00035616,7]
[422294548,1778796648000,-500.0,0.00035616,7]
[422294547,1778796648000,-500.0,0.00035616,7]
[422294543,1778796648000,-500.0,0.00035616,7]
[422294545,1778796648000,-500.0,0.00035616,7]
[422294540,1778796648000,-500.0,0.00035616,7]
[422294541,1778796648000,-500.0,0.00035616,7]
[422294539,1778796648000,-500.0,0.00035616,7]
[422294538,1778796648000,-522.47351871,0.00035616,120]
[422294542,1778796648000,-500.0,0.00035616,7]
[422294544,1778796648000,-500.0,0.00035616,7]
[422294536,1778796648000,-500.0,0.00035616,120]
[422294537,1778796648000,-500.0,0.00035616,120]
[422294550,1778796648000,-500.0,0.00035616,7]
[422294528,1778796648000,-500.0,0.00035616,120]
[422294527,1778796648000,-500.0,0.00035616,120]
[422294526,1778796648000,-500.0,0.00035616,120]
[422294531,1778796648000,-500.0,0.00035616,120]
[422294529,1778796648000,-500.0,0.00035616,120]
[422294535,1778796648000,-500.0,0.00035616,120]
[422294533,1778796648000,-500.0,0.00035616,120]
[422294532,1778796648000,-500.0,0.00035616,120]
[422294534,1778796648000,-500.0,0.00035616,120]
[422294530,1778796648000,-500.0,0.00035616,120]
[422294592,1778796649000,-915.83217215,0.00035616,7]
[422294590,1778796649000,-915.83217215,0.00035616,7]
[422294591,1778796649000,-915.83217215,0.00035616,7]
[422294587,1778796649000,-915.83217215,0.00035616,7]
[422294589,1778796649000,-915.83217215,0.00035616,7]
[422294599,1778796649000,-1051.51101246,0.00035616,7]
[422294585,1778796649000,-915.83217215,0.00035616,7]
[422294588,1778796649000,-915.83217215,0.00035616,7]
[422294582,1778796649000,-915.83217215,0.00035616,7]
[422294584,1778796649000,-1051.51101246,0.00035616,7]
[422294580,1778796649000,-915.83217215,0.00035616,7]
[422294598,1778796649000,-915.83217215,0.00035616,7]
[422294595,1778796649000,-915.83217215,0.00035616,7]
[422294604,1778796649000,-1051.51101246,0.00035616,7]
[422294596,1778796649000,-915.83217215,0.00035616,7]
[422294597,1778796649000,-915.83217215,0.00035616,7]
[422294601,1778796649000,-915.83217215,0.00035616,7]
[422294611,1778796649000,-915.83217215,0.00035616,7]
[422294600,1778796649000,-915.83217215,0.00035616,7]
[422294602,1778796649000,-1051.51101246,0.00035616,7]
[422294603,1778796649000,-915.83217215,0.00035616,7]
[422294608,1778796649000,-915.83217215,0.00035616,7]
[422294609,1778796649000,-915.83217215,0.00035616,7]
[422294605,1778796649000,-915.83217215,0.00035616,7]
[422294610,1778796649000,-915.83217215,0.00035616,7]
[422294606,1778796649000,-915.83217215,0.00035616,7]
[422294583,1778796649000,-915.83217215,0.00035616,7]
[422294593,1778796649000,-915.83217215,0.00035616,7]
[422294581,1778796649000,-915.83217215,0.00035616,7]
[422294574,1778796649000,-915.83217215,0.00035616,7]
[422294579,1778796649000,-915.83217215,0.00035616,7]
[422294552,1778796649000,-500.0,0.00035616,7]
[422294551,1778796649000,-500.0,0.00035616,7]
[422294562,1778796649000,-538.90477261,0.00035616,7]
[422294555,1778796649000,-500.0,0.00035616,7]
[422294553,1778796649000,-500.0,0.00035616,7]
[422294557,1778796649000,-500.0,0.00035616,7]
[422294560,1778796649000,-500.0,0.00035616,7]
[422294554,1778796649000,-500.0,0.00035616,7]
[422294558,1778796649000,-500.0,0.00035616,7]
[422294556,1778796649000,-500.0,0.00035616,7]
[422294559,1778796649000,-500.0,0.00035616,7]
[422294561,1778796649000,-337.65608585,0.00035616,7]
[422294563,1778796649000,-500.0,0.00035616,7]
[422294575,1778796649000,-915.83217215,0.00035616,7]
[422294571,1778796649000,-915.83217215,0.00035616,7]
[422294566,1778796649000,-500.0,0.00035616,7]
[422294607,1778796649000,-915.83217215,0.00035616,7]
[422294565,1778796649000,-500.0,0.00035616,7]
[422294564,1778796649000,-500.0,0.00035616,7]
[422294567,1778796649000,-500.0,0.00035616,7]
[422294570,1778796649000,-500.0,0.00035616,7]
[422294568,1778796649000,-500.0,0.00035616,7]
[422294573,1778796649000,-915.83217215,0.00035616,7]
[422294572,1778796649000,-915.83217215,0.00035616,7]
[422294576,1778796649000,-915.83217215,0.00035616,7]
[422294586,1778796649000,-915.83217215,0.00035616,7]
[422294578,1778796649000,-915.83217215,0.00035616,7]
[422294577,1778796649000,-915.83217215,0.00035616,7]
[422294569,1778796649000,-500.0,0.00035616,7]
[422294613,1778796649000,-898.02432435,0.00035616,7]
[422294594,1778796649000,-915.83217215,0.00035616,7]
[422294622,1778796649000,-898.02432435,0.00035616,7]
[422294647,1778796649000,-733.01,0.000357,120]
[422294646,1778796649000,-286.27,0.000357,2]
[422294645,1778796649000,-335.71,0.000357,30]
[422294651,1778796649000,-163.0,0.0003576,11]
[422294662,1778796649000,-1000.0,0.00036048,2]
[422294653,1778796649000,-930.0,0.00035818,2]
[422294650,1778796649000,-2311.0,0.0003576,11]
[422294652,1778796649000,-178.39541889,0.00035766,2]
[422294661,1778796649000,-1000.0,0.00036048,2]
[422294656,1778796649000,-618.239253,0.00035917,120]
[422294658,1778796649000,-150.0,0.00035981,2]
[422294657,1778796649000,-153.53871279,0.00035978,60]
[422294655,1778796649000,-516.72905,0.00035917,120]
[422294654,1778796649000,-350.0,0.0003589,5]
[422294659,1778796649000,-150.0,0.00036,2]
[422294660,1778796649000,-160.0,0.00036,120]
[422294667,1778796649000,-200.0,0.0003638,5]
[422294665,1778796649000,-2445.9,0.00036153,30]
[422294663,1778796649000,-505.0,0.00036103,14]
[422294666,1778796649000,-151.0,0.00036198,5]
[422294664,1778796649000,-163.89776066,0.00036126,30]
[422294669,1778796649000,-200.0,0.00036384,5]
[422294671,1778796649000,-500.0,0.00036454,2]
[422294672,1778796649000,-500.0,0.00036454,2]
[422294675,1778796649000,-200.0,0.00036454,2]
[422294673,1778796649000,-449.0,0.00036454,2]
[422294623,1778796649000,-898.02432435,0.00035616,7]
[422294670,1778796649000,-184244.0,0.000364,30]
[422294668,1778796649000,-200.0,0.00036383,5]
[422294643,1778796649000,-500.0,0.00035698,30]
[422294644,1778796649000,-184.96,0.00035698,30]
[422294674,1778796649000,-200.0,0.00036454,2]
[422294642,1778796649000,-500.0,0.00035698,30]
[422294648,1778796649000,-301.78,0.000357,2]
[422294621,1778796649000,-898.02432435,0.00035616,7]
[422294617,1778796649000,-898.02432435,0.00035616,7]
[422294619,1778796649000,-898.02432435,0.00035616,7]
[422294614,1778796649000,-898.02432435,0.00035616,7]
[422294615,1778796649000,-898.02432435,0.00035616,7]
[422294612,1778796649000,-1051.51101246,0.00035616,7]
[422294618,1778796649000,-898.02432435,0.00035616,7]
[422294616,1778796649000,-898.02432435,0.00035616,7]
[422294620,1778796649000,-898.02432435,0.00035616,7]
[422294626,1778796649000,-898.02432435,0.00035616,7]
[422294636,1778796649000,-898.02432435,0.00035616,7]
[422294625,1778796649000,-898.02432435,0.00035616,7]
[422294628,1778796649000,-898.02432435,0.00035616,7]
[422294624,1778796649000,-898.02432435,0.00035616,7]